fUST/lending_fUST_20240203
["ID","MTS","AMOUNT","RATE_DAILY","PERIOD"]
[313202761,1706935838741,-500.0,0.00027397,2]
[313202762,1706935838750,-505.8829702,0.00027397,2]
[313202763,1706935838759,-500.0,0.00027397,2]
[313202764,1706935838768,-500.0,0.00027397,2]
[313202765,1706935838777,-500.0,0.00027397,2]
[313202766,1706935838787,-500.0,0.00027397,2]
[313202767,1706935838797,-1094.87,0.00027397,2]
[313202768,1706935838808,-500.0,0.00027397,2]
[313202769,1706935838818,-1471.57,0.00027397,2]
[313202770,1706935838827,-500.0,0.00027397,2]
[313202771,1706935838836,-500.0,0.00027397,2]
[313202772,1706935838845,-500.0,0.00027397,2]
[313202773,1706935838855,-884.27,0.00027397,2]
[313202774,1706935838864,-500.0,0.00027397,2]
[313202775,1706935838873,-500.0,0.00027397,2]
[313202776,1706935838882,-500.0,0.00027397,2]
[313202777,1706935838891,-577.14,0.00027397,2]
[313202778,1706935838901,-560.84,0.00027397,2]
[313202779,1706935838910,-500.0,0.00027397,2]
[313202780,1706935838919,-3381.61,0.00027397,2]
[313202781,1706935838929,-500.0,0.00027397,2]
[313202782,1706935838939,-360.18416607,0.00027397,2]
[313202783,1706935838948,-306.13947633,0.00027635,2]
[313202784,1706935838958,-500.0,0.00027671,2]
[313202785,1706935838967,-513.20003639,0.00027671,2]
[313202786,1706935838976,-500.0,0.00027671,2]
[313202787,1706935838985,-500.0,0.00027671,2]
[313202788,1706935838994,-500.0,0.00027671,2]
[313202789,1706935839110,-1094.87,0.00027671,2]
[313202790,1706935839120,-500.0,0.00027671,2]
[313202791,1706935839131,-1471.57,0.00027671,2]
[313202792,1706935839142,-500.0,0.00027671,2]
[313202793,1706935839151,-500.0,0.00027671,2]
[313202794,1706935839160,-884.27,0.00027671,2]
[313202795,1706935839169,-500.0,0.00027671,2]
[313202796,1706935839179,-500.0,0.00027671,2]
[313202797,1706935839187,-500.0,0.00027671,2]
[313202798,1706935839196,-577.14,0.00027671,2]
[313202799,1706935839205,-560.84,0.00027671,2]
[313202800,1706935839215,-500.0,0.00027671,2]
[313202801,1706935839224,-3381.61,0.00027671,2]
[313202802,1706935839234,-500.0,0.00027671,2]
[313202803,1706935839243,-153.0,0.00027671,2]
[313202804,1706935839253,-500.0,0.00027945,2]
[313202805,1706935839263,-500.0,0.00027945,2]
[313202806,1706935839273,-500.0,0.00027945,2]
[313202807,1706935839282,-1094.87,0.00027945,2]
[313202808,1706935839292,-500.0,0.00027945,2]
[313202809,1706935839301,-1471.57,0.00027945,2]
[313202810,1706935839311,-500.0,0.00027945,2]
[313202811,1706935839321,-500.0,0.00027945,2]
[313202812,1706935839330,-884.27,0.00027945,2]
[313202813,1706935839339,-500.0,0.00027945,2]
[313202814,1706935839348,-500.0,0.00027945,2]
[313202815,1706935839357,-500.0,0.00027945,2]
[313202816,1706935839366,-577.14,0.00027945,2]
[313202817,1706935839375,-560.84,0.00027945,2]
[313202818,1706935839384,-500.0,0.00027945,2]
[313202819,1706935839393,-3381.61,0.00027945,2]
[313202820,1706935839404,-500.0,0.00027945,2]
[313202821,1706935839413,-600.0,0.00028,2]
[313202822,1706935839423,-2607.86180786,0.00028206,2]
[313202823,1706935839435,-280.04530859,0.00028206,2]
[313202824,1706935839446,-1835.21668935,0.00028215,2]
[313202825,1706935839455,-295.77401166,0.00028217,2]
[313202826,1706935839464,-500.0,0.00028219,2]
[313202827,1706935839474,-500.0,0.00028219,2]
[313202828,1706935839483,-500.0,0.00028219,2]
[313202829,1706935839493,-1094.87,0.00028219,2]
[313202830,1706935839504,-500.0,0.00028219,2]
[313202831,1706935839514,-1471.57,0.00028219,2]
[313202832,1706935839523,-500.0,0.00028219,2]
[313202833,1706935839532,-500.0,0.00028219,2]
[313202834,1706935839543,-884.27,0.00028219,2]
[313202835,1706935839554,-500.0,0.00028219,2]
[313202836,1706935839563,-500.0,0.00028219,2]
[313202837,1706935839573,-500.0,0.00028219,2]
[313202838,1706935839582,-577.14,0.00028219,2]
[313202839,1706935839597,-560.84,0.00028219,2]
[313202841,1706935839606,-168.7625422,0.00028219,2]
[313202843,1706935839615,-3381.61,0.00028219,2]
[313202844,1706935839624,-500.0,0.00028219,2]
[313202845,1706935839633,-680.01303789,0.00028243,2]
[313202846,1706935839642,-155.2000158,0.00028243,2]
[313202847,1706935839651,-155.09735843,0.00028243,2]
[313202848,1706935839660,-4746.03427768,0.00028244,2]
[313202849,1706935839670,-5000.0,0.00028245,5]
[313202850,1706935839679,-230.428261,0.00028245,2]
[313202851,1706935839688,-2894.9937641,0.00028491,2]
[313202852,1706935839696,-527.79289368,0.00028491,2]
[313202853,1706935839705,-198.21926313,0.00028491,2]
[313202854,1706935839714,-784.19970493,0.00028491,2]
[313202855,1706935839723,-567.9403646,0.00028491,2]
[313202856,1706935839732,-236.61194321,0.00028491,2]
[313202857,1706935839741,-295.66204115,0.00028491,2]
[313202858,1706935839750,-155.50059253,0.00028491,2]
[313202859,1706935839760,-276.59272274,0.00028491,2]
[313202860,1706935839769,-10024.76977442,0.00028491,2]
[313202861,1706935839779,-2735.06093172,0.00028491,2]
[313202862,1706935839788,-265.13726759,0.00028491,2]
[313202863,1706935839797,-155.19535128,0.00028491,2]
[313202864,1706935839806,-155.2432463,0.00028491,2]
[313202865,1706935839815,-151.0,0.00028491,2]
[313202866,1706935839824,-151.0,0.00028491,2]
[313202867,1706935839833,-1877.38390938,0.00028492,2]
[313202868,1706935839843,-938.73689018,0.00028492,2]
[313202869,1706935839852,-500.0,0.00028493,2]
[313202870,1706935839862,-500.0,0.00028493,2]
[313202871,1706935839871,-500.0,0.00028493,2]
[313202872,1706935839880,-1094.87,0.00028493,2]
[313202873,1706935839889,-500.0,0.00028493,2]
[313202874,1706935839899,-1471.57,0.00028493,2]
[313202875,1706935839908,-500.0,0.00028493,2]
[313202876,1706935839917,-500.0,0.00028493,2]
[313202877,1706935839926,-884.27,0.00028493,2]
[313202878,1706935839936,-500.0,0.00028493,2]
[313202879,1706935839945,-500.0,0.00028493,2]
[313202880,1706935839954,-307.97352537,0.00028493,2]
[313202881,1706935840014,-192.02647463,0.00028493,2]
[313202882,1706935840023,-577.14,0.00028493,2]
[313202883,1706935840033,-560.84,0.00028493,2]
[313202884,1706935840042,-365.47431945,0.00028493,2]
[313202949,1706935843268,-443.80207433,0.00021955,2]
[313202954,1706935843323,-1141.89421168,0.00021955,2]
[313202956,1706935843332,-734.74874792,0.00028493,2]
[313203030,1706935846270,-5000.0,0.00021735,2]
[313203031,1706935846279,-2281.38693263,0.00028493,2]
[313203032,1706935846288,-326.48571519,0.00028493,2]
[313203033,1706935846298,-321.1555127,0.00028493,2]
[313203034,1706935846307,-199.6142226,0.00028493,2]
[313203035,1706935846316,-252.8446631,0.00028493,2]
[313203036,1706935846327,-306.0,0.00028493,2]
[313203037,1706935846336,-199.7424242,0.00028493,2]
[313203038,1706935846345,-306.0,0.00028493,2]
[313203039,1706935846354,-153.0,0.00028493,2]
[313203040,1706935846363,-199.7424242,0.00028493,2]
[313203041,1706935846372,-153.0,0.00028493,2]
[313203042,1706935846381,-199.7424242,0.00028493,2]
[313203043,1706935846390,-199.7424242,0.00028493,2]
[313203044,1706935846399,-600.0,0.000285,2]
[313203045,1706935846408,-567.84335684,0.00028766,2]
[313203046,1706935846420,-27.88711286,0.00028766,2]
[313203047,1706935846429,-500.0,0.00028766,2]
[313203048,1706935846438,-305.78424959,0.00028766,2]
[313203049,1706935846447,-500.0,0.00028766,2]
[313203050,1706935846456,-500.0,0.00028766,2]
[313203051,1706935846465,-500.0,0.00028766,2]
[313203052,1706935846474,-199.28569422,0.00028766,2]
[313203053,1706935846483,-288.26781842,0.00028766,2]
[313203054,1706935846492,-500.0,0.00028767,2]
[313203055,1706935846501,-500.0,0.00028767,2]
[313203056,1706935846511,-431.84913888,0.00028767,2]
[313203057,1706935846519,-1094.87,0.00028767,2]
[313203058,1706935846528,-500.0,0.00028767,2]
[313203059,1706935846537,-1471.57,0.00028767,2]
[313203060,1706935846547,-500.0,0.00028767,2]
[313203061,1706935846556,-151.0,0.00028767,2]
[313203062,1706935846565,-151.0,0.00028767,2]
[313203063,1706935846575,-500.0,0.00028767,2]
[313203064,1706935846586,-884.27,0.00028767,2]
[313203065,1706935846599,-500.0,0.00028767,2]
[313203067,1706935846608,-500.0,0.00028767,2]
[313203068,1706935846617,-500.0,0.00028767,2]
[313203069,1706935846627,-577.14,0.00028767,2]
[313203070,1706935846638,-560.84,0.00028767,2]
[313203071,1706935846648,-3364.25449739,0.00028767,2]
[313203072,1706935846662,-17.35550261,0.00028767,2]
[313203073,1706935846673,-3630.25828182,0.000288,4]
[313203194,1706937032400,-155.02015262,0.0002153,2]
[313203196,1706937032410,-273.16924148,0.00021531,2]
[313203197,1706937032419,-1786.05754925,0.00021532,2]
[313203198,1706937032432,-3213.94245075,0.00021532,2]
[313203199,1706937032441,-181.0199692,0.00021754,2]
[313203200,1706937032451,-1410.00239002,0.00022185,2]
[313203201,1706937032461,-3951.33948107,0.0002264,2]
[313203202,1706937032473,-11487.35972963,0.0002264,2]
[313203225,1706937039364,-5000.0,0.00022414,2]
[313203227,1706937039374,-9461.3007893,0.0002264,2]
[313203229,1706937039383,-250.0,0.00023783,2]
[313203231,1706937039392,-4668.31187459,0.000239,2]
[313203232,1706937039402,-557.18325977,0.00024349,2]
[313203233,1706937039411,-160.41744523,0.00024349,2]
[313203234,1706937039420,-152.77851927,0.00024349,2]
[313203235,1706937039430,-5043.22223418,0.00024755,2]
[313203236,1706937039441,-158.43065664,0.00024755,2]
[313203237,1706937039451,-324.71131223,0.00024755,2]
[313203238,1706937039461,-1744.60659565,0.00025,2]
[313203239,1706937039470,-70.70779628,0.00025,10]
[313203280,1706937041563,-653.59416934,0.00025,10]
[313203282,1706937041572,-2041.88584619,0.00025,2]
[313203284,1706937041581,-4397.71584247,0.00025,2]
[313203339,1706937046501,-5000.0,0.0002475,2]
[313203340,1706937046510,-2357.80957774,0.00025,2]
[313203341,1706937046520,-1004.55724641,0.00025,2]
[313203342,1706937046529,-335.29979556,0.00025296,2]
[313203343,1706937046538,-1111.16821382,0.00025297,2]
[313203412,1706938234968,-155.02015262,0.00020874,2]
[313203414,1706938234981,-273.16924148,0.00020875,2]
[313203416,1706938234991,-155.02015262,0.00020876,2]
[313203418,1706938235001,-717.4770118,0.00020876,2]
[313203420,1706938235010,-1585.69628601,0.00020876,2]
[313203422,1706938235019,-537.5156718,0.00020877,2]
[313203424,1706938235029,-15651.47925234,0.00021378,2]
[313203426,1706938235038,-5000.0,0.00021379,2]
[313203428,1706938235047,-274.714176,0.00021597,2]
[313203430,1706938235057,-13285.7057135,0.00021915,2]
[313203432,1706938235067,-156.60298543,0.00022402,2]
[313203434,1706938235077,-1484.42326199,0.00024755,2]
[313203436,1706938235086,-335.29979556,0.00025042,2]
[313203438,1706938235096,-3550.52932006,0.00025043,2]
[313203440,1706938235106,-869.18055187,0.00025297,2]
[313203442,1706938235116,-155.02015262,0.00025642,4]
[313203444,1706938235127,-153.0,0.00026849,2]
[313203446,1706938235137,-153.0,0.00026849,2]
[313203448,1706938235146,-153.0,0.00026849,2]
[313203450,1706938235155,-199.7424242,0.00026856,2]
[313203452,1706938235164,-153.0,0.00026878,2]
[313203454,1706938235173,-153.0,0.00026878,2]
[313203456,1706938235183,-5000.0,0.00027086,2]
[313203458,1706938235192,-500.0,0.00027397,2]
[313203460,1706938235201,-1000.0,0.00027397,2]
[313203462,1706938235211,-500.0,0.00027397,2]
[313203464,1706938235220,-500.0,0.00027397,2]
[313203466,1706938235230,-500.0,0.00027397,2]
[313203468,1706938235240,-962.82,0.00027397,2]
[313203470,1706938235252,-500.0,0.00027397,2]
[313203472,1706938235261,-500.0,0.00027397,2]
[313203474,1706938235269,-1326.98,0.00027397,2]
[313203476,1706938235279,-500.0,0.00027397,2]
[313203478,1706938235288,-500.0,0.00027397,2]
[313203480,1706938235298,-500.0,0.00027397,2]
[313203482,1706938235307,-500.0,0.00027397,2]
[313203484,1706938235316,-500.0,0.00027397,2]
[313203486,1706938235326,-500.0,0.00027397,2]
[313203488,1706938235335,-778.36,0.00027397,2]
[313203490,1706938235345,-500.0,0.00027397,2]
[313203492,1706938235354,-500.0,0.00027397,2]
[313203494,1706938235364,-500.0,0.00027397,2]
[313203496,1706938235373,-500.0,0.00027397,2]
[313203498,1706938235383,-500.0,0.00027397,2]
[313203500,1706938235392,-500.0,0.00027397,2]
[313203502,1706938235401,-500.0,0.00027397,2]
[313203504,1706938235411,-506.31384961,0.00027397,2]
[313203506,1706938235420,-500.0,0.00027397,2]
[313203508,1706938235429,-3006.12,0.00027397,2]
[313203510,1706938235439,-500.0,0.00027397,2]
[313203512,1706938235448,-500.0,0.00027397,2]
[313203514,1706938235458,-303.39,0.00027397,2]
[313203516,1706938235467,-150.247468,0.00027397,2]
[313203518,1706938235478,-500.0,0.00027534,2]
[313203520,1706938235489,-4716.3,0.00027641,3]
[313203522,1706938235499,-5659.56,0.00027651,3]
[313203524,1706938235509,-3547.64272352,0.00027661,3]
[313203612,1706938238745,-500.0,0.00027397,2]
[313203613,1706938238755,-3243.82727648,0.00027661,3]
[313203614,1706938238764,-1000.0,0.00027671,2]
[313203615,1706938238774,-505.60411591,0.00027671,2]
[313203616,1706938238783,-500.0,0.00027671,2]
[313203617,1706938238793,-962.82,0.00027671,2]
[313203618,1706938238802,-500.0,0.00027671,2]
[313203619,1706938238811,-500.0,0.00027671,2]
[313203620,1706938238820,-1326.98,0.00027671,2]
[313203621,1706938238830,-500.0,0.00027671,2]
[313203622,1706938238840,-151.0,0.00027671,2]
[313203623,1706938238849,-500.0,0.00027671,2]
[313203624,1706938238858,-500.0,0.00027671,2]
[313203625,1706938238867,-500.0,0.00027671,2]
[313203626,1706938238876,-778.36,0.00027671,2]
[313203627,1706938238885,-163.73310372,0.00027671,2]
[313203628,1706938238894,-500.0,0.00027671,2]
[313203629,1706938238903,-500.0,0.00027671,2]
[313203630,1706938238912,-500.0,0.00027671,2]
[313203631,1706938238922,-500.0,0.00027671,2]
[313203632,1706938238933,-500.0,0.00027671,2]
[313203633,1706938238943,-500.0,0.00027671,2]
[313203634,1706938238952,-500.0,0.00027671,2]
[313203635,1706938238963,-3006.12,0.00027671,2]
[313203636,1706938239079,-500.0,0.00027671,2]
[313203637,1706938239092,-720.22162271,0.00027945,2]
[313203638,1706938239103,-533.95903115,0.00027945,2]
[313203639,1706938239113,-962.82,0.00027945,2]
[313203640,1706938239123,-500.0,0.00027945,2]
[313203641,1706938239132,-500.0,0.00027945,2]
[313203642,1706938239141,-1326.98,0.00027945,2]
[313203643,1706938239151,-500.0,0.00027945,2]
[313203644,1706938239160,-151.0,0.00027945,2]
[313203645,1706938239170,-500.0,0.00027945,2]
[313203646,1706938239218,-500.0,0.00027945,2]
[313203647,1706938239228,-500.0,0.00027945,2]
[313203648,1706938239238,-778.36,0.00027945,2]
[313203649,1706938239249,-500.0,0.00027945,2]
[313203650,1706938239259,-500.0,0.00027945,2]
[313203651,1706938239268,-500.0,0.00027945,2]
[313203652,1706938239280,-500.0,0.00027945,2]
[313203653,1706938239290,-500.0,0.00027945,2]
[313203654,1706938239299,-3006.12,0.00027945,2]
[313203655,1706938239309,-500.0,0.00027945,2]
[313203656,1706938239319,-962.82,0.00028219,2]
[313203657,1706938239332,-500.0,0.00028219,2]
[313203658,1706938239341,-500.0,0.00028219,2]
[313203659,1706938239350,-1326.98,0.00028219,2]
[313203660,1706938239359,-500.0,0.00028219,2]
[313203661,1706938239369,-778.36,0.00028219,2]
[313203662,1706938239378,-500.0,0.00028219,2]
[313203663,1706938239388,-500.0,0.00028219,2]
[313203664,1706938239398,-500.0,0.00028219,2]
[313203665,1706938239407,-500.0,0.00028219,2]
[313203666,1706938239417,-500.0,0.00028219,2]
[313203667,1706938239425,-3004.48198986,0.00028219,2]
[313203676,1706938241801,-1326.1537254,0.00027384,2]
[313203741,1706938387334,316.51,0.000202,2]
[313203813,1706939431766,-717.4770118,0.00023786,2]
[313203815,1706939431776,-5000.0,0.00023787,2]
[313203817,1706939431784,-159.0453495,0.00024767,2]
[313203819,1706939431794,-335.29979556,0.00025,2]
[313203821,1706939431804,-170.403287,0.00025783,2]
[313203823,1706939431813,-6889.04415081,0.00025995,2]
[313204092,1706940631930,-717.4770118,0.00022463,2]
[313204094,1706940631940,-1200.7118793,0.00022464,2]
[313204096,1706940631949,-274.15946335,0.00022464,2]
[313204098,1706940631961,-28.41190596,0.00022464,2]
[313204100,1706940631971,-4176.84141118,0.00022465,2]
[313204102,1706940631981,-1048.05633871,0.00022466,2]
[313204498,1706941832084,-522.49468692,0.0002136,2]
[313204555,1706941838190,-1156.6432218,0.00021146,2]
[313204556,1706941838204,-3843.3567782,0.00021146,2]
[313204557,1706941838214,-11.03205691,0.0002136,2]
[313204813,1706941846218,-5000.0,0.00021146,2]
[313204814,1706941846229,-183.95026797,0.0002136,2]
[313204815,1706941846241,-155.01860223,0.00022466,2]
[313204816,1706941846253,-1560.45593446,0.00024349,2]
[313204817,1706941846264,-245.17777466,0.00024349,2]
[313204818,1706941846276,-1217.66742085,0.00024767,2]
[313204819,1706941846286,-3500.0,0.00024767,2]
[313204820,1706941846296,-1490.20718725,0.00024767,2]
[313204885,1706943032251,-717.4770118,0.00020654,2]
[313204887,1706943032263,-1200.7118793,0.00020655,2]
[313204890,1706943032274,-689.47929116,0.00020656,2]
[313204892,1706943032284,-500.0,0.00020656,2]
[313204893,1706943032295,-5000.0,0.00020658,2]
[313204895,1706943032305,-294.07631708,0.00022,4]
[313204898,1706943032315,-156.14357834,0.00022466,2]
[313204902,1706943032327,-3977.44618093,0.00022666,2]
[313204904,1706943032337,-1658.7510676,0.00022667,2]
[313204906,1706943032348,-342.7145991,0.00022828,2]
[313204909,1706943032359,-272.234641,0.00022872,2]
[313204911,1706943032371,-166.666666,0.00023259,2]
[313204913,1706943032381,-151.0,0.00023505,2]
[313204915,1706943032392,-230.428261,0.00023505,2]
[313204917,1706943032402,-151.0,0.00023505,2]
[313204919,1706943032413,-6231.7173417,0.00023506,2]
[313204922,1706943032423,-3750.0,0.00023673,2]
[313204924,1706943032433,-169.991464,0.00023773,2]
[313204926,1706943032444,-151.0,0.00024099,2]
[313204928,1706943032454,-347.75048701,0.00024349,2]
[313204930,1706943032464,-199.7424242,0.00024384,2]
[313204932,1706943032474,-199.7424242,0.00024384,2]
[313204934,1706943032483,-199.2249462,0.00024384,2]
[313204936,1706943032493,-1637.66897058,0.00024767,2]
[313204938,1706943032503,-1432.44073083,0.00024767,2]
[313204940,1706943032514,-831.25,0.00024767,2]
[313204942,1706943032524,-151.0,0.00024767,2]
[313204944,1706943032535,-151.0,0.00024767,2]
[313204946,1706943032545,-200.0,0.00024932,7]
[313204948,1706943032556,-170.124174,0.00024935,2]
[313204950,1706943032566,-335.29979556,0.00025204,2]
[313204952,1706943032577,-306.0,0.00025205,2]
[313204954,1706943032587,-399.0557995,0.00025205,2]
[313204956,1706943032598,-155.03255684,0.00025241,4]
[313204959,1706943032608,-151.0,0.00025278,2]
[313204961,1706943032619,-153.0,0.00025278,2]
[313204963,1706943032629,-306.542544,0.00025278,2]
[313204965,1706943032640,-306.8078246,0.00025278,2]
[313204967,1706943032652,-153.873444,0.00025278,2]
[313204969,1706943032664,-154.000139,0.00025278,2]
[313204971,1706943032675,-153.0,0.00025278,2]
[313204973,1706943032684,-212.433075,0.00025278,2]
[313204975,1706943032694,-199.7424242,0.00025278,2]
[313204978,1706943032703,-200.0,0.00025479,2]
[313204980,1706943032714,-153.0,0.0002556,2]
[313204982,1706943032726,-153.9082875,0.0002596,2]
[313204984,1706943032740,-153.0,0.0002596,2]
[313204986,1706943032750,-578.0,0.000261,2]
[313204988,1706943032761,-151.0,0.00026108,2]
[313204991,1706943032773,-166.666666,0.0002643,2]
[313204993,1706943032784,-235.852646,0.00026828,2]
[313204995,1706943032795,-648.94464604,0.00027345,2]
[313204997,1706943032806,-500.0,0.00027397,2]
[313204999,1706943032817,-500.0,0.00027397,2]
[313205001,1706943032828,-748.37,0.00027397,2]
[313205003,1706943032840,-500.0,0.00027397,2]
[313205005,1706943032851,-500.0,0.00027397,2]
[313205006,1706943032861,-500.0,0.00027397,2]
[313205007,1706943032871,-500.0,0.00027397,2]
[313205008,1706943032882,-500.0,0.00027397,2]
[313205009,1706943032892,-500.0,0.00027397,2]
[313205010,1706943032902,-270.8136147,0.00027397,2]
[313205011,1706943032913,-2560.42,0.00027397,2]
[313205012,1706943032924,-1000.0,0.00027397,2]
[313205013,1706943032934,-500.0,0.00027397,2]
[313205014,1706943032945,-884.14,0.00027397,2]
[313205015,1706943032955,-150.247468,0.00027397,2]
[313205016,1706943032966,-280.0,0.00027425,15]
[313205017,1706943032979,-4991.85,0.0002749,3]
[313205018,1706943032990,-500.0,0.00027496,2]
[313205019,1706943033000,-500.0,0.00027496,2]
[313205020,1706943033010,-500.0,0.00027496,2]
[313205021,1706943033019,-500.0,0.00027497,2]
[313205022,1706943033029,-500.0,0.00027497,2]
[313205023,1706943033039,-46.07695672,0.00027497,2]
[313205059,1706943041619,-5000.0,0.00027222,2]
[313205061,1706943041628,-453.92304328,0.00027497,2]
[313205062,1706943041637,-500.0,0.00027497,2]
[313205065,1706943041647,-1171.49,0.00027497,2]
[313205067,1706943041656,-500.0,0.00027497,2]
[313205069,1706943041666,-500.0,0.00027498,2]
[313205070,1706943041675,-487.18695672,0.00027498,2]
[313205075,1706943041687,-16.13868234,0.00027498,2]
[313205077,1706943041697,-504.08404034,0.00027498,2]
[313205079,1706943041706,-353.32596457,0.00027498,2]
[313205080,1706943041715,-501.37259724,0.00027498,2]
[313205082,1706943041724,-500.0,0.00027498,2]
[313205084,1706943041733,-515.99079095,0.00027498,2]
[313205086,1706943041748,-506.75800662,0.00027498,2]
[313205087,1706943041758,-411.16612368,0.00027498,2]
[313205088,1706943041767,-500.0,0.00027498,2]
[313205089,1706943041776,-18543.54304821,0.000275,2]
[313205090,1706943041786,-1658.7510676,0.00027667,2]
[313205091,1706943041796,-500.0,0.00027671,2]
[313205092,1706943041805,-748.37,0.00027671,2]
[313205093,1706943041815,-500.0,0.00027671,2]
[313205094,1706943041824,-500.0,0.00027671,2]
[313205095,1706943041833,-500.0,0.00027671,2]
[313205096,1706943041842,-500.0,0.00027671,2]
[313205097,1706943041851,-2560.42,0.00027671,2]
[313205098,1706943041860,-884.14,0.00027671,2]
[313205099,1706943041869,-1611.76948657,0.000277,4]
[313205100,1706943041878,-500.0,0.0002777,2]
[313205101,1706943041888,-500.0,0.00027771,2]
[313205102,1706943041897,-500.0,0.00027771,2]
[313205103,1706943041906,-500.0,0.00027771,2]
[313205104,1706943041914,-1002.35296028,0.00027771,2]
[313205131,1706943043306,-169.13703972,0.00027771,2]
[313205133,1706943043316,-500.0,0.00027771,2]
[313205134,1706943043326,-500.0,0.00027772,2]
[313205136,1706943043335,-3087.38791068,0.00027855,2]
[313205138,1706943043346,-518.61,0.00027855,2]
[313205139,1706943043359,-1510.26,0.00027855,2]
[313205140,1706943043372,-861.211647,0.00027855,2]
[313205141,1706943043384,-1297.71659226,0.00027855,2]
[313205142,1706943043394,-37.98316303,0.00027945,2]
[313205143,1706943043407,-462.01683697,0.00027945,2]
[313205144,1706943043416,-528.65176074,0.00027945,2]
[313205210,1706943258795,269.5117454,0.0001,2]
[313205247,1706944232440,-717.4770118,0.00020707,2]
[313205248,1706944232450,-1868.22615769,0.00020708,2]
[313205249,1706944232460,-301.53999632,0.00021243,2]
[313205250,1706944232470,-272.234641,0.00021745,2]
[313205251,1706944232479,-1042.04150557,0.000219,2]
[313205279,1706944238578,-2239.20849443,0.000219,2]
[313205280,1706944238588,-4869.73521308,0.00021999,2]
[313205315,1706944241722,-469.45799078,0.00021999,2]
[313205322,1706944241775,-4037.38979175,0.00021999,2]
[313205360,1706944246571,-3678.94212519,0.00021999,2]
[313205363,1706944406340,1048.38822037,0.00019899,2]
[313205373,1706945007599,698.92548025,0.00019899,2]
[313205419,1706945432656,-500.0,0.00021567,2]
[313205421,1706945432665,-717.4770118,0.00021568,2]
[313205423,1706945432674,-463.75701558,0.000218,2]
[313205425,1706945432684,-15.11632321,0.00021918,2]
[313205442,1706945439504,-151.55034279,0.00021918,2]
[313205443,1706945439515,-6199.66700634,0.00021999,2]
[313205444,1706945439524,-158.6786546,0.00022,4]
[313205445,1706945439534,-426.88835692,0.00022,2]
[313205446,1706945439543,-3977.44618093,0.00022385,2]
[313205447,1706945439553,-326.17134224,0.00022385,2]
[313205448,1706945439563,-6036.871392,0.00022386,2]
[313205449,1706945439572,-166.666666,0.00023381,2]
[313205450,1706945439582,-4035.82532571,0.00024,2]
[313205451,1706945439591,-2871.09375,0.00024097,2]
[313205452,1706945439601,-20000.0,0.00024197,2]
[313205453,1706945439610,-200.0,0.00024622,7]
[313205454,1706945439620,-8256.35750625,0.00024767,2]
[313205455,1706945439629,-19161.48685588,0.00024767,2]
[313205456,1706945439638,-719.57481562,0.00024767,2]
[313205457,1706945439648,-2279.96182125,0.00024767,2]
[313205458,1706945439657,-156.39380789,0.00024767,2]
[313205459,1706945439668,-166.666666,0.00024844,2]
[313205460,1706945439676,-698.92548025,0.00024899,2]
[313205461,1706945439686,-1640.46942817,0.00025297,2]
[313205462,1706945439697,-170.124174,0.00025691,2]
[313205463,1706945439706,-155.0341075,0.000261,4]
[313205464,1706945439831,-151.0,0.00026135,2]
[313205465,1706945439846,-2871.09375,0.00026829,3]
[313205466,1706945439858,-280.0,0.00027084,15]
[313205467,1706945439868,-621.4472323,0.00027276,2]
[313205468,1706945439878,-500.0,0.00027397,2]
[313205469,1706945439887,-507.07785156,0.00027397,2]
[313205470,1706945439897,-514.11660151,0.00027397,2]
[313205471,1706945439907,-507.35740571,0.00027397,2]